fUSD/lending_fUSD_20260503
["ID","MTS","AMOUNT","RATE_DAILY","PERIOD"]
[421513801,1777799443000,-2682.519,0.000218,2]
[421513795,1777799443000,-1700.83981594,0.00021718,2]
[421513804,1777799443000,-326793.2633106,0.00021818,2]
[421513802,1777799443000,-540.5127369,0.00021808,2]
[421513796,1777799443000,-8200.0,0.00021718,2]
[421513805,1777799443000,-3918.25,0.00021818,2]
[421513847,1777799446000,-1748.75654252,0.00021818,2]
[421513845,1777799446000,-28474.43513539,0.00021818,2]
[421513846,1777799446000,-14224.70347768,0.00021818,2]
[421513851,1777799446000,-137328.71115982,0.00021818,2]
[421513850,1777799446000,-38705.01147502,0.00021818,2]
[421513849,1777799446000,-1006.25890066,0.00021818,2]
[421513848,1777799446000,-5227.26542733,0.00021818,2]
[421513874,1777799588000,10048.322627,7.945e-05,2]
[421513873,1777799588000,5000.01,7.945e-05,2]
[421513876,1777799887000,1999.45397,7.945e-05,2]
[421513877,1777799971000,508.0,0.00030137,120]
[421513879,1777799984000,200.0,0.00030137,120]
[421513885,1777800073000,151.0,0.00030137,120]
[421513891,1777800348000,-250.0,0.00013,2]
[421513892,1777800348000,-20.93357818,0.00013,2]
[421513896,1777800430000,640.15,0.0001179,2]
[421513897,1777800484000,5000.01,8e-05,2]
[421513898,1777800484000,1447.9050196,8e-05,2]
[421513899,1777800487000,150.0,0.0001,5]
[421513900,1777800507000,150.0,0.00012,5]
[421513901,1777800521000,150.0,0.00012,5]
[421513904,1777800550000,-640.15,0.0001241,2]
[421513903,1777800550000,-312.0,0.0001241,2]
[421513908,1777800550000,-1368.81664927,0.00013281,2]
[421513907,1777800550000,-640.15,0.00013031,2]
[421513906,1777800550000,-150.0,0.00013,5]
[421513905,1777800550000,-150.0,0.000125,5]
[421513918,1777800557000,-1626.83,0.00015378,2]
[421513909,1777800557000,-258.01335073,0.00013281,2]
[421513910,1777800557000,-640.15,0.00013651,2]
[421513912,1777800557000,-640.15,0.00014272,2]
[421513911,1777800557000,-1626.83,0.0001398,2]
[421513913,1777800557000,-1626.83,0.00014679,2]
[421513914,1777800557000,-640.15,0.00014892,2]
[421513915,1777800557000,-300.0,0.00015,2]
[421513917,1777800557000,-300.0,0.00015377,2]
[421513916,1777800557000,-150.0,0.00015,5]
[421513919,1777800557000,-640.15,0.00015513,2]
[421513931,1777800557000,-500.0,0.000192,7]
[421513922,1777800557000,-640.15,0.00016133,2]
[421513932,1777800557000,-396.36732301,0.00019236,2]
[421513930,1777800557000,-1626.83,0.00018873,2]
[421513921,1777800557000,-1626.83,0.00016077,2]
[421513926,1777800557000,-1626.83,0.00017475,2]
[421513928,1777800557000,-1626.83,0.00018174,2]
[421513929,1777800557000,-640.15,0.00018615,2]
[421513925,1777800557000,-640.15,0.00017374,2]
[421513924,1777800557000,-1626.83,0.00016776,2]
[421513923,1777800557000,-640.15,0.00016754,2]
[421513920,1777800557000,-1138.0,0.00016074,2]
[421513927,1777800557000,-640.15,0.00017995,2]
[421513934,1777800573000,-150.0,0.00013,5]
[421513935,1777800573000,-150.0,0.00013,5]
[421513933,1777800573000,-150.0,0.00013,5]
[421513936,1777800590000,150.0,0.00013,2]
[421513938,1777800611000,4700.01,0.00012,2]
[421513937,1777800611000,1883.15445424,0.00012,2]
[421513939,1777800611000,9850.01,0.00012,2]
[421513940,1777800611000,177463.11749824,0.00012,2]
[421513945,1777800632000,-582.42862899,0.00019572,2]
[421513943,1777800632000,-243.78267699,0.00019236,2]
[421513944,1777800632000,-312.0,0.00019236,2]
[421513961,1777800638000,-348.95599716,0.00019572,2]
[421513973,1777800640000,-640.15,0.00020477,2]
[421513970,1777800640000,-1032.67633169,0.00020271,2]
[421513971,1777800640000,-173.23,0.00020308,2]
[421513975,1777800640000,-300.0,0.0002081,2]
[421513967,1777800640000,-640.15,0.00019856,2]
[421513964,1777800640000,-695.44537385,0.00019572,2]
[421513974,1777800640000,-85.22570583,0.0002081,2]
[421513968,1777800640000,-267.0,0.0002,2]
[421513965,1777800640000,-156.83,0.000197,2]
[421513969,1777800640000,-594.15366831,0.00020271,2]
[421513976,1777800640000,-114.77429417,0.0002081,2]
[421513972,1777800640000,-156.83,0.00020391,2]
[421513977,1777800640000,-1626.83,0.00020971,2]
[421514003,1777800640000,-302.60113198,0.00021176,2]
[421513987,1777800640000,-43.51694602,0.00021176,2]
[421513988,1777800640000,-5612.48809474,0.00021176,2]
[421513985,1777800640000,-2500.0,0.00021159,2]
[421513986,1777800640000,-1328.27659266,0.00021176,2]
[421513982,1777800640000,-300.0,0.00021095,2]
[421513980,1777800640000,-156.83,0.00021082,2]
[421513984,1777800640000,-640.15,0.00021097,2]
[421513983,1777800640000,-3000.0,0.00021096,2]
[421513979,1777800640000,-267.0,0.00021,2]
[421513981,1777800640000,-300.0,0.00021095,2]
[421513978,1777800640000,-1200.0,0.00020999,2]
[421514025,1777800643000,-151.0,0.00021176,2]
[421514022,1777800643000,-426.0,0.00021176,2]
[421514024,1777800643000,-248.20339016,0.00021176,2]
[421514027,1777800643000,-151.0,0.00021231,2]
[421514026,1777800643000,-174.61919142,0.00021176,2]
[421514028,1777800643000,-151.0,0.00021286,2]
[421514023,1777800643000,-478.51655685,0.00021176,2]
[421514030,1777800643000,-321.55787528,0.0002137,2]
[421514029,1777800643000,-151.0,0.00021341,2]
[421514031,1777800643000,-676.05694954,0.0002137,2]
[421514054,1777800646000,-26131.1124,0.00021718,2]
[421514056,1777800646000,-151.0,0.00021722,2]
[421514051,1777800646000,-406.0,0.00021718,2]
[421514053,1777800646000,-399.0,0.00021718,2]
[421514057,1777800646000,-252.99008915,0.00021722,2]
[421514059,1777800646000,-1377.42282659,0.00021724,2]
[421514052,1777800646000,-401.0,0.00021718,2]
[421514058,1777800646000,-453.7118057,0.00021722,2]
[421514060,1777800646000,-400.0,0.00021743,2]
[421514062,1777800646000,-410.0,0.00021787,2]
[421514055,1777800646000,-640.15,0.00021718,2]
[421514046,1777800646000,-402.0,0.00021718,2]
[421514042,1777800646000,-150.0,0.00021561,2]
[421514047,1777800646000,-250.0,0.00021718,2]
[421514049,1777800646000,-405.0,0.00021718,2]
[421514048,1777800646000,-402.0,0.00021718,2]
[421514045,1777800646000,-1626.83,0.0002167,2]
[421514041,1777800646000,-151.0,0.00021506,2]
[421514043,1777800646000,-151.0,0.00021561,2]
[421514044,1777800646000,-3000.0,0.00021644,2]
[421514040,1777800646000,-151.0,0.00021451,2]
[421514038,1777800646000,-2002.38517518,0.0002137,2]
[421514039,1777800646000,-151.0,0.00021396,2]
[421514065,1777800646000,-500.0,0.00021817,2]
[421514050,1777800646000,-411.0,0.00021718,2]
[421514067,1777800646000,-500.0,0.00021817,2]
[421514068,1777800646000,-500.0,0.00021817,2]
[421514066,1777800646000,-500.0,0.00021817,2]
[421514061,1777800646000,-156.83,0.00021774,2]
[421514089,1777800646000,-632.64675255,0.00022951,2]
[421514087,1777800646000,-1057.55007792,0.0002274,2]
[421514088,1777800646000,-4175.5884,0.00022774,2]
[421514086,1777800646000,-1942.44992208,0.0002274,2]
[421514084,1777800646000,-3000.0,0.00022466,2]
[421514083,1777800646000,-1626.83,0.00022369,2]
[421514081,1777800646000,-3000.0,0.00022192,2]
[421514082,1777800646000,-640.15,0.00022338,2]
[421514075,1777800646000,-2000.0,0.0002197,2]
[421514077,1777800646000,-1384.01420906,0.0002197,2]
[421514073,1777800646000,-2000.0,0.0002197,2]
[421514085,1777800646000,-218.95724503,0.00022696,2]
[421514080,1777800646000,-267.0,0.00022,2]
[421514071,1777800646000,-410.0,0.00021818,2]
[421514076,1777800646000,-615.98579094,0.0002197,2]
[421514070,1777800646000,-413.0,0.00021818,2]
[421514074,1777800646000,-2000.0,0.0002197,2]
[421514079,1777800646000,-2000.0,0.0002197,2]
[421514063,1777800646000,-162.45035992,0.00021793,2]
[421514069,1777800646000,-500.0,0.00021817,2]
[421514072,1777800646000,-3000.0,0.00021918,2]
[421514064,1777800646000,-500.0,0.00021817,2]
[421514090,1777800646000,-282.76196776,0.00022951,2]
[421514078,1777800646000,-2000.0,0.0002197,2]
[421514113,1777800668000,10000.01,0.000115,2]
[421514114,1777800668000,2543.56463216,0.000115,2]
[421514118,1777801407000,773.84,0.00011451,2]
[421514117,1777801407000,773.84,0.00010878,2]
[421514120,1777801550000,-427.83894162,0.00012023,2]
[421514128,1777801748000,-773.84,0.00014313,2]
[421514129,1777801748000,-773.84,0.00014886,2]
[421514127,1777801748000,-773.84,0.00013741,2]
[421514126,1777801748000,-250.0,0.00013226,2]
[421514124,1777801748000,-773.84,0.00012596,2]
[421514122,1777801748000,-346.00105838,0.00012023,2]
[421514125,1777801748000,-773.84,0.00013168,2]
[421514123,1777801748000,-239.53707248,0.0001231,2]
[421514131,1777801766000,-2587.67213169,0.00016014,2]
[421514133,1777801766000,-773.84,0.00016604,2]
[421514132,1777801766000,-773.84,0.00016031,2]
[421514136,1777801766000,-854.99588723,0.00017748,2]
[421514134,1777801766000,-154.0,0.00017148,2]
[421514135,1777801766000,-773.84,0.00017176,2]
[421514130,1777801766000,-773.84,0.00015459,2]
[421514145,1777801832000,-162.09395671,0.00018148,2]
[421514146,1777801832000,-773.84,0.00018321,2]
[421514150,1777801832000,-85.40546564,0.00019466,2]
[421514148,1777801832000,-500.0,0.000192,7]
[421514151,1777801832000,-508.0,0.00019466,2]
[421514147,1777801832000,-773.84,0.00018894,2]
[421514144,1777801832000,-773.84,0.00017749,2]
[421514154,1777801832000,-155.0,0.0002,2]
[421514152,1777801832000,-180.43453436,0.00019466,2]
[421514155,1777801832000,-773.84,0.00020039,2]
[421514153,1777801832000,-511.0,0.0002,2]
[421514156,1777801832000,-2578.86,0.00020274,2]
[421514157,1777801832000,-400.93384074,0.00020418,2]
[421514158,1777801832000,-531.73649619,0.00020418,2]
[421514149,1777801832000,-1200.0,0.00019451,2]
[421514165,1777801841000,-67.32966307,0.00020418,2]
[421514167,1777801841000,-773.84,0.00020611,2]
[421514166,1777801841000,-166.54,0.00020509,2]
[421514168,1777801841000,-148.14033693,0.00020925,2]
[421514169,1777801841000,-202.96966307,0.00020925,2]
[421514172,1777801841000,-155.0,0.00021,2]
[421514171,1777801841000,-421.8208636,0.00021,2]
[421514170,1777801841000,-89.1791364,0.00021,2]
[421514184,1777801842000,-133.5608636,0.00021598,2]
[421514175,1777801842000,-404.0,0.00021598,2]
[421514174,1777801842000,-1050.0,0.00021294,2]
[421514173,1777801842000,-773.84,0.00021184,2]
[421514178,1777801842000,-407.0,0.00021598,2]
[421514177,1777801842000,-401.0,0.00021598,2]
[421514179,1777801842000,-272.4391364,0.00021598,2]
[421514186,1777801842000,-407.0,0.00021598,2]
[421514191,1777801842000,-410.0,0.00021598,2]
[421514195,1777801842000,-401.0,0.00021615,2]
[421514205,1777801842000,-412.0,0.00021615,2]
[421514193,1777801842000,-162.45035992,0.00021603,2]
[421514203,1777801842000,-411.0,0.00021615,2]
[421514189,1777801842000,-408.0,0.00021598,2]
[421514207,1777801842000,-206.44640595,0.00021616,2]
[421514199,1777801842000,-406.0,0.00021615,2]
[421514197,1777801842000,-406.0,0.00021615,2]
[421514201,1777801842000,-405.0,0.00021615,2]
[421514381,1777801843000,-400.0,0.00021618,2]
[421514345,1777801843000,-193.55359405,0.00021616,2]
[421514349,1777801843000,-54.67541232,0.00021616,2]
[421514367,1777801843000,-66.55793348,0.00021616,2]
[421514368,1777801843000,-275.7666542,0.00021616,2]
[421514369,1777801843000,-397.0,0.00021616,2]
[421514370,1777801843000,-413.0,0.00021616,2]
[421514380,1777801843000,-408.0,0.00021618,2]
[421514379,1777801843000,-407.0,0.00021617,2]
[421514347,1777801843000,-408.0,0.00021616,2]
[421514374,1777801843000,-411.0,0.00021617,2]
[421514371,1777801843000,-399.0,0.00021617,2]
[421514375,1777801843000,-409.0,0.00021617,2]
[421514372,1777801843000,-407.0,0.00021617,2]
[421514376,1777801843000,-404.0,0.00021617,2]
[421514373,1777801843000,-408.0,0.00021617,2]
[421514382,1777801843000,-401.0,0.00021618,2]
[421514383,1777801843000,-404.0,0.00021618,2]
[421514377,1777801843000,-408.0,0.00021617,2]
[421514384,1777801843000,-48.2333458,0.00021757,2]
[421514392,1777801844000,1972.94,0.00030137,120]
[421514426,1777801846000,-511.0,0.00022,2]
[421514434,1777801846000,-2010.91304,0.0002272,2]
[421514432,1777801846000,-2010.91303,0.0002272,2]
[421514433,1777801846000,-2010.91303,0.0002272,2]
[421514436,1777801846000,-258.0,0.00022951,2]
[421514430,1777801846000,-872.27977709,0.0002203,2]
[421514435,1777801846000,-180.57,0.00022778,2]
[421514425,1777801846000,-830.6,0.00021936,2]
[421514438,1777801846000,-2010.91303,0.00022951,2]
[421514431,1777801846000,-184.48,0.00022077,2]
[421514429,1777801846000,-479.79371134,0.0002203,2]
[421514422,1777801846000,-7937.44575058,0.00021916,2]
[421514427,1777801846000,-155.0,0.00022,2]
[421514423,1777801846000,-4967.4178134,0.00021916,2]
[421514424,1777801846000,-5000.0,0.00021918,2]
[421514421,1777801846000,-1796.46053642,0.00021916,2]
[421514420,1777801846000,-4944.88814521,0.00021906,2]
[421514418,1777801846000,-203.92585953,0.00021903,2]
[421514419,1777801846000,-8853.3397231,0.00021906,2]
[421514415,1777801846000,-725.6066542,0.00021757,2]
[421514416,1777801846000,-2949.47,0.00021836,2]
[421514449,1777801846000,-700.0,0.00023696,2]
[421514428,1777801846000,-8079.93651157,0.0002203,2]
[421514451,1777801846000,-1626.83,0.00023767,2]
[421514417,1777801846000,-217.06,0.000219,2]
[421514439,1777801846000,-2010.91304,0.00022951,2]
[421514437,1777801846000,-2010.91303,0.00022951,2]
[421514481,1777801846000,-500.0,0.00024374,2]
[421514483,1777801846000,-500.0,0.00024374,2]
[421514480,1777801846000,-500.0,0.00024374,2]
[421514478,1777801846000,-531.66486425,0.00024374,2]
[421514474,1777801846000,-500.0,0.00024374,2]
[421514476,1777801846000,-500.0,0.00024374,2]
[421514472,1777801846000,-500.0,0.00024374,2]
[421514468,1777801846000,-500.0,0.00024374,2]
[421514470,1777801846000,-500.0,0.00024374,2]
[421514466,1777801846000,-500.0,0.00024374,2]
[421514462,1777801846000,-500.0,0.00024374,2]
[421514464,1777801846000,-500.0,0.00024374,2]
[421514455,1777801846000,-4175.5884,0.00024265,2]
[421514442,1777801846000,-158.0,0.00023,2]
[421514441,1777801846000,-511.0,0.00023,2]
[421514444,1777801846000,-1000.0,0.000232,7]
[421514461,1777801846000,-361.65555813,0.00024374,2]
[421514445,1777801846000,-150.0,0.00023455,2]
[421514447,1777801846000,-640.15,0.0002358,2]
[421514443,1777801846000,-1626.83,0.00023068,2]
[421514453,1777801846000,-511.0,0.00024,2]
[421514459,1777801846000,-500.0,0.00024374,2]
[421514457,1777801846000,-2500.0,0.00024275,2]
[421514440,1777801846000,-640.15,0.00022959,2]
[421514494,1777801847000,-190.6924513,0.00024374,2]
[421514493,1777801847000,-500.0,0.00024374,2]
[421514492,1777801847000,-499.99999999,0.00024374,2]
[421514495,1777801847000,-500.0,0.00024374,2]
[421514487,1777801847000,-500.0,0.00024374,2]
[421514484,1777801847000,-500.0,0.00024374,2]
[421514486,1777801847000,-500.0,0.00024374,2]
[421514497,1777801847000,-875.0,0.00024375,2]
[421514488,1777801847000,-500.0,0.00024374,2]
[421514491,1777801847000,-500.0,0.00024374,2]
[421514496,1777801847000,-63541.11951026,0.00024375,2]
[421514489,1777801847000,-500.0,0.00024374,2]
[421514502,1777802736000,-165.73458701,0.0001507,2]
[421514503,1777802738000,-51.26541299,0.0001507,2]
[421514507,1777802830000,-1261.3887495,0.00016577,2]
[421514506,1777802830000,-250.0,0.00016577,2]
[421514505,1777802830000,-250.0,0.00015824,2]
[421514504,1777802830000,-174.49,0.0001507,2]
[421514510,1777802955000,-504.96295908,0.00017269,7]
[421514511,1777802955000,-295.42044072,0.00017623,2]
[421514509,1777802955000,-1238.6112505,0.00016577,2]
[421514512,1777802969000,-500.0,0.000192,7]
[421514529,1777803032000,-19622.19128366,0.00021637,2]
[421514528,1777803032000,-891.90871634,0.00021637,2]
[421514532,1777803032000,-383.0,0.00022,2]
[421514530,1777803032000,-1852.42,0.00021672,2]
[421514526,1777803032000,-300.0,0.00021517,2]
[421514527,1777803032000,-151.0,0.00021518,2]
[421514525,1777803032000,-191.0,0.00021517,2]
[421514524,1777803032000,-316.09128366,0.00021508,2]
[421514523,1777803032000,-154.66871634,0.00021508,2]
[421514517,1777803032000,-817986.5921,0.00021418,2]
[421514521,1777803032000,-186.50286004,0.00021507,2]
[421514518,1777803032000,-2422.23692825,0.00021418,2]
[421514519,1777803032000,-200.0,0.00021505,2]
[421514522,1777803032000,-4944.88814521,0.00021508,2]
[421514516,1777803032000,-884.2824,0.00021418,2]
[421514514,1777803032000,-383.0,0.0002,2]
[421514515,1777803032000,-383.0,0.00021,2]
[421514533,1777803032000,-409.0,0.00022968,2]
[421514520,1777803032000,-1013.49713996,0.00021507,2]
[421514531,1777803032000,-2830.58,0.00021724,2]
[421514567,1777803032000,-2021.97763837,0.00023365,2]
[421514535,1777803032000,-383.0,0.00023,2]
[421514570,1777803032000,-1306.353504,0.00023365,2]
[421514569,1777803032000,-380.68182096,0.00023365,2]
[421514568,1777803032000,-674.06681493,0.00023365,2]
[421514534,1777803032000,-408.0,0.00022968,2]
[421514548,1777803032000,-415.78432906,0.00023365,2]
[421514549,1777803032000,-1017.29465335,0.00023365,2]
[421514547,1777803032000,-501.55199785,0.00023365,2]
[421514545,1777803032000,-604.22503791,0.00023365,2]
[421514541,1777803032000,-8680.12098367,0.00023365,2]
[421514550,1777803032000,-8119.79882738,0.00023365,2]
[421514543,1777803032000,-4556.57125749,0.00023365,2]
[421514544,1777803032000,-6127.228,0.00023365,2]
[421514542,1777803032000,-8408.46727034,0.00023365,2]
[421514540,1777803032000,-449.1151341,0.00023365,2]
[421514539,1777803032000,-501.69944493,0.00023364,2]
[421514537,1777803032000,-1000.0,0.000232,7]
[421514538,1777803032000,-1355.6939025,0.00023209,2]
[421514536,1777803032000,-4401.74,0.00023103,2]
[421514546,1777803032000,-459.3294119,0.00023365,2]
[421514571,1777803038000,-438.28747622,0.00021318,2]
[421514573,1777803038000,-817.89670941,0.00023365,2]
[421514572,1777803038000,-222.44596096,0.00021572,2]
[421514575,1777803038000,-269.21200311,0.00023365,2]
[421514577,1777803038000,-4144.1699421,0.00023365,2]
[421514576,1777803038000,-684.14999999,0.00023365,2]
[421514579,1777803038000,-1213.01541754,0.00023365,2]
[421514578,1777803038000,-39239.06638081,0.00023365,2]
[421514574,1777803038000,-11556.63275172,0.00023365,2]
[421514617,1777803042000,-9451.32038619,0.00023365,2]
[421514616,1777803042000,-5959.26102461,0.00023365,2]
[421514619,1777803042000,-3644.0972826,0.00023365,2]
[421514620,1777803042000,-1053.5695996,0.00023365,2]
[421514621,1777803042000,-28639.89288629,0.00023365,2]
[421514618,1777803042000,-3570.00311151,0.00023365,2]
[421514622,1777803042000,-2091.62525408,0.00023365,2]
[421514664,1777803043000,-500.0,0.00024192,2]
[421514662,1777803043000,-500.0,0.00024192,2]
[421514660,1777803043000,-500.0,0.00024192,2]
[421514659,1777803043000,-185.79635712,0.00024001,2]
[421514665,1777803043000,-500.0,0.00024192,2]
[421514661,1777803043000,-513.77842702,0.00024192,2]
[421514657,1777803043000,-500.0,0.00024001,2]
[421514658,1777803043000,-500.0,0.00024001,2]
[421514654,1777803043000,-152.0,0.00023684,7]
[421514655,1777803043000,-398.0,0.0002369,2]
[421514649,1777803043000,-404.0,0.00023399,2]
[421514651,1777803043000,-1200.0,0.00023493,2]
[421514650,1777803043000,-408.0,0.00023469,2]
[421514663,1777803043000,-500.0,0.00024192,2]
[421514652,1777803043000,-2810.0,0.000235,2]
[421514653,1777803043000,-2422.23692818,0.00023638,2]
[421514646,1777803043000,-412.0,0.00023376,2]
[421514647,1777803043000,-420.0,0.00023393,2]
[421514645,1777803043000,-175.82,0.00023375,2]
[421514643,1777803043000,-151.0,0.00023365,2]
[421514644,1777803043000,-399.0,0.00023369,2]
[421514641,1777803043000,-47110.69688258,0.00023365,2]
[421514642,1777803043000,-151.0,0.00023365,2]
[421514640,1777803043000,-722.8955016,0.00023365,2]
[421514639,1777803043000,-3244.89510645,0.00023365,2]
[421514648,1777803043000,-150.0,0.00023398,2]
[421514666,1777803043000,-500.0,0.00024192,2]
[421514656,1777803043000,-383.0,0.00024,2]
[421514668,1777803043000,-500.0,0.00024192,2]
[421514694,1777803043000,-361.25165968,0.00026004,2]
[421514692,1777803043000,-1626.83,0.00025864,2]
[421514667,1777803043000,-500.0,0.00024192,2]
[421514690,1777803043000,-587.0,0.00025433,2]
[421514691,1777803043000,-2422.23692818,0.00025858,2]
[421514689,1777803043000,-151.0,0.00025165,2]
[421514687,1777803043000,-151.0,0.00025165,2]
[421514688,1777803043000,-151.0,0.00025165,2]
[421514686,1777803043000,-1626.83,0.00025165,2]
[421514685,1777803043000,-168.42,0.00025066,2]
[421514683,1777803043000,-156.92,0.00024734,2]
[421514684,1777803043000,-391.0,0.00025,2]
[421514681,1777803043000,-404.0,0.00024375,2]
[421514693,1777803043000,-4354.031,0.00026004,2]
[421514680,1777803043000,-401.0,0.00024375,2]
[421514682,1777803043000,-1626.83,0.00024466,2]
[421514670,1777803043000,-500.0,0.00024192,2]
[421514672,1777803043000,-500.0,0.00024192,2]
[421514671,1777803043000,-500.0,0.00024192,2]
[421514673,1777803043000,-500.0,0.00024192,2]
[421514674,1777803043000,-567.65649731,0.00024192,2]
[421514669,1777803043000,-500.0,0.00024192,2]
[421514677,1777803043000,-500.0,0.00024374,2]
[421514676,1777803043000,-438.2874762,0.00024301,2]
[421514679,1777803043000,-399.0,0.00024375,2]
[421514678,1777803043000,-500.0,0.00024374,2]
[421514675,1777803043000,-31835.5227,0.00024275,2]
[421514719,1777803044000,-500.0,0.00026301,2]
[421514710,1777803044000,-500.0,0.00026301,2]
[421514718,1777803044000,-500.0,0.00026301,2]
[421514717,1777803044000,-500.0,0.00026301,2]
[421514711,1777803044000,-500.0,0.00026301,2]
[421514713,1777803044000,-500.0,0.00026301,2]
[421514715,1777803044000,-500.0,0.00026301,2]
[421514714,1777803044000,-500.0,0.00026301,2]
[421514712,1777803044000,-500.0,0.00026301,2]
[421514709,1777803044000,-500.0,0.00026301,2]
[421514700,1777803044000,-500.0,0.00026301,2]
[421514705,1777803044000,-500.0,0.00026301,2]
[421514716,1777803044000,-500.0,0.00026301,2]
[421514702,1777803044000,-500.0,0.00026301,2]
[421514704,1777803044000,-565.02359743,0.00026301,2]
[421514699,1777803044000,-500.0,0.00026301,2]
[421514696,1777803044000,-614.759,0.00026006,2]
[421514697,1777803044000,-1049.0,0.00026006,2]
[421514698,1777803044000,-500.0,0.00026301,2]
[421514695,1777803044000,-859.74834032,0.00026004,2]
[421514720,1777803044000,-364.94815518,0.00026301,2]
[421514707,1777803044000,-500.0,0.00026301,2]
[421514723,1777803044000,-150.0,0.00026301,2]
[421514741,1777803044000,-384.58,0.00027397,10]
[421514729,1777803044000,-178.948875,0.00026301,2]
[421514752,1777803044000,-284.0,0.00028258,10]
[421514725,1777803044000,-150.0,0.00026301,2]
[421514753,1777803044000,-652.55625476,0.00029,5]
[421514751,1777803044000,-3114.0,0.000282,3]
[421514749,1777803044000,-1532.12318294,0.00028079,2]
[421514750,1777803044000,-890.11374524,0.00028079,2]
[421514747,1777803044000,-401.0,0.00027928,10]
[421514734,1777803044000,-447.0,0.00026938,10]
[421514736,1777803044000,-506.0,0.00027137,2]
[421514739,1777803044000,-151.0,0.00027397,2]
[421514737,1777803044000,-151.0,0.00027397,2]
[421514733,1777803044000,-177.040612,0.00026575,2]
[421514748,1777803044000,-156.92,0.0002796,2]
[421514745,1777803044000,-823.0,0.00027651,2]
[421514743,1777803044000,-320.48,0.00027397,10]
[421514731,1777803044000,-150.0,0.00026575,2]
[421514732,1777803044000,-150.0,0.00026575,2]
[421514730,1777803044000,-1626.83,0.00026563,2]
[421514721,1777803044000,-150.0,0.00026301,2]
[421514726,1777803044000,-150.0,0.00026301,2]
[421514727,1777803044000,-150.0,0.00026301,2]
[421514735,1777803044000,-1500.0,0.000271,7]
[421514728,1777803044000,-250.0,0.00026301,2]
[421514783,1777803046000,-154.0,0.00031144,30]
[421514781,1777803046000,-150.0,0.00031011,2]
[421514784,1777803046000,-160.0,0.00031144,30]
[421514786,1777803046000,-155.0,0.00031144,30]
[421514785,1777803046000,-383.0,0.00031144,30]
[421514792,1777803046000,-154.0,0.00032144,30]
[421514788,1777803046000,-161.0,0.00031145,30]
[421514791,1777803046000,-506.0,0.00031734,7]
[421514790,1777803046000,-478.34,0.00031617,2]
[421514782,1777803046000,-2000.0,0.000311,7]
[421514789,1777803046000,-168.81105734,0.000316,2]
[421514787,1777803046000,-158.0,0.00031144,30]
[421514777,1777803046000,-664.48,0.00030359,2]
[421514767,1777803046000,-153.0,0.00029,10]
[421514773,1777803046000,-174.49,0.0003014,2]
[421514778,1777803046000,-521.0,0.00030699,5]
[421514776,1777803046000,-796.02580752,0.000303,30]
[421514780,1777803046000,-175.55,0.00030789,2]
[421514774,1777803046000,-2422.23692818,0.00030299,2]
[421514772,1777803046000,-1058.92,0.000299,30]
[421514770,1777803046000,-150.0,0.00029534,2]
[421514771,1777803046000,-449.1151341,0.00029663,2]
[421514769,1777803046000,-506.0,0.00029435,4]
[421514768,1777803046000,-1219.0,0.00029004,2]
[421514766,1777803046000,-261.0,0.00029,10]
[421514765,1777803046000,-4875.44374524,0.00029,5]
[421514793,1777803046000,-160.0,0.00032144,30]